Cogmind - Beta 14 @@@ ROGUE MODE // 2024.12.04 @ 22:07:49 Player: richard Result: Self-destructed Performance ------------- Evolutions (1) 500 Regions Visited (3) 600 Robots Destroyed (32) 160 Value Destroyed (777) 777 Prototype IDs (2) 40 Alien Tech Used (0) 0 Bonus (0) 0 TOTAL SCORE: 2077 Bonus ------- None Cogmind --------- Core Integrity 266/400 Matter 194/300 Energy 125/125 System Corruption 1% Temperature Cool (0) Movement Treading (320) Ox2 Location -9/Mines Parts ------- > --- POWER (1) -------- Light Ion Engine > --- PROPULSION (2) --- Light Treads Light Treads (fused) > --- UTILITY (2) ------ Huge Storage Unit > --- WEAPON (4) ------- Autogun Shotgun Shotgun Rocket Launcher > --- INVENTORY (25) --- Light Ion Engine Aluminum Leg Aluminum Leg Peak State ------------ > --- POWER ------------ Improved Ion Engine > --- PROPULSION ------- Light Treads Light Treads > --- UTILITY ---------- Huge Storage Unit Light Armor Plating > --- WEAPON ----------- Autogun Shotgun Shotgun Rocket Launcher > --- INVENTORY -------- Light Ion Engine Aluminum Leg Aluminum Leg [Rating: 14] Favorites ----------- Power Improved Ion Engine Engine Improved Ion Engine Propulsion Light Treads Treads Light Treads Utility Light Armor Plating Device Sensor Array Storage Huge Storage Unit Processor Signal Interpreter Protection Light Armor Plating Weapon Light Assault Rifle Energy Gun Medium Laser Ballistic Gun Light Assault Rifle Launcher Rocket Launcher Build | -11 -10 -9 -9 ------- Run | Yrd Mat Mat Min Slots Evolved 2 | . . 2 . Power . | . . . . Propulsion . | . . . . Utility . | . . . . Weapon 2 | . . 2 . Parts Attached 31 | 6 7 16 2 Power 7 | 1 2 3 1 Engine 7 | 1 2 3 1 Core . | . . . . Reactor . | . . . . Propulsion 8 | 2 . 6 . Treads 8 | 2 . 6 . Leg . | . . . . Wheel . | . . . . Hover . | . . . . Flight . | . . . . Utility 6 | 1 2 3 . Device 1 | . 1 . . Storage 3 | 1 . 2 . Processor 1 | . 1 . . Hackware . | . . . . Protection 1 | . . 1 . Artifact . | . . . . Weapon 10 | 2 3 4 1 Energy Gun 1 | 1 . . . Energy Cannon . | . . . . Ballistic Gun 8 | 1 3 4 . Ballistic Cannon . | . . . . Launcher 1 | . . . 1 Special Weapon . | . . . . Impact Weapon . | . . . . Slashing Weapon . | . . . . Piercing Weapon . | . . . . Special Melee Weapon . | . . . . Unidentified Prototypes . | . . . . Parts Lost 2 | . . 1 1 Power . | . . . . Propulsion . | . . . . Utility 2 | . . 1 1 Weapon . | . . . . Highest Loss Streak 1 | . . 1 1 To Critical Strikes . | . . . . Average Slot Usage (%) 94 | . 95 93 96 Engine 11 | . 13 10 10 Treads 23 | . 28 21 22 Device 3 | . 11 . . Storage 5 | . 2 4 11 Processor 5 | . 11 6 . Protection 6 | . . 8 8 Ballistic Gun 36 | . 23 39 40 Peak Build Rating 14 | 6 7 13 14 Average Rating 10 | 4 6 11 12 On Entrance 6 | . 6 7 13 Naked Turns . | . . . . Heaviest Build 103 | 13 13 100 103 Greatest Support 43 | 40 40 43 40 Greatest Overweight (x) 2 | . . 2 2 Average Overweight (x) . | . . . 2 Largest Inventory Capacity 25 | 8 8 25 25 Average Capacity 13 | 6 5 10 25 Most Carried 5 | 4 5 5 3 Average Carried 3 | 2 3 3 3 Final Capacity 25 | 8 5 25 25 Final Carried 4 | 4 3 3 3 Class Distribution -------------------- 57% | Scavenger-Tank 19% | Mutant 10% | Gunner 7% | Scavenger-Mutant Dominant Class ---------------- Mutant | -10/Materials Scavenger-Tank | -9/Materials Scavenger-Tank | -9/Mines Resources | -11 -10 -9 -9 ----------- Run | Yrd Mat Mat Min Matter Collected 1093 | 258 139 578 118 Remotely . | . . . . Salvage Created 1338 | . 263 954 121 Parts 76 | . 15 60 1 Haulers Intercepted . | . . . . Recyclers Shooed 3 | . . 3 . Parts Field Recycled . | . . . . Retrieved Matter . | . . . . Parts Self-Destructed . | . . . . Prevented . | . . . . Kills | -11 -10 -9 -9 ------- Run | Yrd Mat Mat Min Combat Hostiles Destroyed 30 | . 7 14 9 Guns 26 | . 7 14 5 AOE 4 | . . . 4 Classes Destroyed 8 | . 3 4 1 Worker 1 | . . 1 . Recycler 6 | . . 5 1 Watcher 4 | . 1 3 . Swarmer 5 | . 2 3 . Grunt 12 | . 5 7 . Duelist 1 | . . 1 . Sentry 3 | . . 3 . Assembled 9 | . . . 9 Best Kill Streak 6 | . 2 6 3 Combat Bots Only 3 | . 2 3 3 Max Kills in Single Turn 2 | . 1 1 2 Gunslinging . | . . . . Exploded 2 | . . . 2 Melee . | . . . . Uniques/NPCs Destroyed . | . . . . Combat | -11 -10 -9 -9 -------- Run | Yrd Mat Mat Min Hostile Shots Fired 136 | . 64 49 23 Missed 28 | . 17 6 5 Damage Taken 1445 | . 486 576 383 Core 220 | . 86 69 65 Absorbed by Shields . | . . . . Regen/Repaired (Parts) 196 | . . 196 . Core Remaining (%) 82 | 100 65 . . Volleys Fired 97 | . 34 50 13 Largest 4 | . 2 4 4 Hottest 102 | . 70 89 102 Shots Fired 280 | . 68 162 50 Gun 276 | . 68 162 46 Cannon . | . . . . Launcher 4 | . . . 4 Special . | . . . . Kinetic 275 | . 67 162 46 Thermal 1 | . 1 . . Explosive 4 | . . . 4 Electromagnetic . | . . . . Robot Hit Streak 11 | . 9 11 4 Robot Miss Streak 5 | . 3 5 4 Penetration Max . | . . . . Secondary Targets 4 | . 2 2 . Max Gunslinging Chain 1 | . 1 1 . Shots Hit Robots 166 | . 46 95 25 Core Hits 82 | . 18 46 18 Critical Kills . | . . . . Critical Parts Destroyed 2 | . . 2 . Critical Strikes 2 | . . 2 . Destroy 2 | . . 2 . Melee Attacks . | . . . . Impact . | . . . . Slashing . | . . . . Piercing . | . . . . Sneak Attacks . | . . . . Combat Hostiles . | . . . . Follow-up Attacks . | . . . . Damage Inflicted 2119 | . 401 1151 567 Guns 1872 | . 401 1138 333 Cannons . | . . . . Explosions 222 | . . . 222 Melee . | . . . . Ramming 25 | . . 13 12 Kinetic 1859 | . 388 1138 333 Thermal 13 | . 13 . . Explosive 222 | . . . 222 Electromagnetic . | . . . . Impact . | . . . . Slashing . | . . . . Piercing . | . . . . Highest Corruption 1 | . . 1 1 Average Corruption 1 | . . 1 1 Corruption Purged . | . . . . Corruption Blocked . | . . . . Effects 10 | . . 6 4 Message Errors 2 | . . 1 1 Matter Fused 1 | . . . 1 Heat Flow Errors 3 | . . 2 1 Parts Fused 1 | . . 1 . Data Loss (major) 2 | . . 1 1 Alerts 1 | . . 1 . Overload Shots . | . . . . Overflow Damage 29 | . . . 29 Projectiles . | . . . . Explosions 29 | . . . 29 Melee . | . . . . Knockbacks . | . . . . Impact . | . . . . Kinetic . | . . . . Secondary . | . . . . Self-Inflicted Damage 29 | . . . 29 Shots 1 | . . . 1 Rammed 2 | . . 1 1 Targets Rammed 3 | . . 1 2 Kicked . | . . . . Crushed 1 | . . . 1 Highest Temperature 170 | . 30 125 170 Average Temperature 31 | . 10 31 44 Received Heat Transfer 439 | . 177 162 100 Siege Activations . | . . . . Robots Corrupted . | . . . . Combat Hostiles . | . . . . Parts Fried . | . . . . Impact Corruptions . | . . . . Robots Melted . | . . . . Combat Hostiles . | . . . . Parts Melted . | . . . . Heat Transferred 37 | . 37 . . Parts Sabotaged . | . . . . Parts Stolen . | . . . . Parts Stripped . | . . . . Power Chain Reactions . | . . . . Alert | -11 -10 -9 -9 ------- Run | Yrd Mat Mat Min Peak Influence 264 | . 172 264 49 Initial 44 | . . 39 44 Average 92 | . 43 153 31 Maximum Alert Level 1 | . . 1 . Low Security (%) 87 | 100 100 74 100 Level 1 12 | . . 25 . Level 2 . | . . . . Level 3 . | . . . . Level 4 . | . . . . Level 5 . | . . . . High Security . | . . . . Max Security . | . . . . Squads Dispatched 3 | . 2 1 . Investigation 1 | . 1 . . Extermination . | . . . . Reinforcement 2 | . 1 1 . Assault . | . . . . Garrison . | . . . . Intercept . | . . . . Searches Triggered . | . . . . Construction Impeded . | . . . . Haulers Reinforced . | . . . . Active Scanning Responses . | . . . . Cargo Convoy Interrupts . | . . . . Stealth | -11 -10 -9 -9 --------- Run | Yrd Mat Mat Min Distress Signals 4 | . . 3 1 Communications Jammed . | . . . . Distress Signals . | . . . . Times Spotted 48 | . 13 26 9 Peak Tracking Total 4 | . 4 4 2 Tactical Retreats 5 | . 2 2 1 Traps | -11 -10 -9 -9 ------- Run | Yrd Mat Mat Min Traps Triggered 1 | . 1 . . Indirectly . | . . . . Trap Hack Attempts . | . . . . Triggered . | . . . . Disarmed . | . . . . Reprogrammed . | . . . . Reused . | . . . . Traps Extracted . | . . . . Installed . | . . . . Triggered . | . . . . Machines | -11 -10 -9 -9 ---------- Run | Yrd Mat Mat Min Machines Disabled 1 | . . 1 . Max in Single Turn 1 | . . 1 . Machines Repaired . | . . . . Machines Dismantled . | . . . . Machines Sabotaged . | . . . . Overloaded Fab Kills . | . . . . Hacking | -11 -10 -9 -9 --------- Run | Yrd Mat Mat Min Machines Accessed 9 | . . 9 . Terminals 6 | . . 6 . Fabricators . | . . . . Repair Stations 1 | . . 1 . Recycling Units 1 | . . 1 . Scanalyzers 1 | . . 1 . Garrison Access . | . . . . Total Hacks 28 | . . 28 . Successful 19 | . . 19 . Failed 9 | . . 9 . Catastrophic 1 | . . 1 . Database Lockouts . | . . . . Manual . | . . . . Terminals 16 | . . 16 . Fabricators . | . . . . Repair Stations 5 | . . 5 . Recycling Units 5 | . . 5 . Scanalyzers 2 | . . 2 . Garrison Access . | . . . . Terminal Hacks 9 | . . 9 . Record 3 | . . 3 . Prototype ID Bank 1 | . . 1 . Alert Level 3 | . . 3 . Locate Traps 1 | . . 1 . Recall Reinforcements 1 | . . 1 . Fabricator Hacks . | . . . . Repair Station Hacks 5 | . . 5 . Scan Component 3 | . . 3 . Repair 2 | . . 2 . Recycling Unit Hacks 3 | . . 3 . Report Inventory 1 | . . 1 . Retrieve Components 2 | . . 2 . Scanalyzer 2 | . . 2 . Insert Component 1 | . . 1 . Analyze 1 | . . 1 . Garrison Access Hacks . | . . . . Unauthorized Hacks . | . . . . Terminals . | . . . . Fabricators . | . . . . Repair Stations . | . . . . Recycling Units . | . . . . Scanalyzers . | . . . . Garrison Access . | . . . . Data Cores Recovered . | . . . . Used . | . . . . Hacking Detections 7 | . . 7 . Full Trace Events 2 | . . 2 . Feedback Events 1 | . . 1 . Corruption 1 | . . 1 . Feedback Blocked . | . . . . Robot Schematics Acquired . | . . . . Robots Built . | . . . . Authchips . | . . . . Time . | . . . . Total Robot Build Rating . | . . . . Part Schematics Acquired 1 | . . 1 . Parts Built . | . . . . Authchips . | . . . . Time . | . . . . Total Part Build Rating . | . . . . Parts Repaired 2 | . . 2 . Time 58 | . . 58 . Parts Recycled . | . . . . Recycled Matter . | . . . . Retrieved Matter . | . . . . Retrieved Components 11 | . . 11 . Parts Scanalyzed 1 | . . 1 . Part Schematics Acquired 1 | . . 1 . Parts Damaged . | . . . . Bothacking | -11 -10 -9 -9 ------------ Run | Yrd Mat Mat Min Used RIF Installer . | . . . . Robots Hacked . | . . . . Non-combat . | . . . . Combat . | . . . . Robot Hacks Applied . | . . . . Relay Couplers Released . | . . . . Fabnet Peak Effective % . | . . . . Robots Rewired . | . . . . Allies Hacked . | . . . . Hacks Repelled . | . . . . Allies | -11 -10 -9 -9 -------- Run | Yrd Mat Mat Min Total Allies . | . . . . Largest Group . | . . . . Highest-Rated Group . | . . . . Highest-Rated Ally . | . . . . Total Orders . | . . . . Ally Attacks . | . . . . Total Damage . | . . . . Kills . | . . . . Allies Corrupted . | . . . . Allies Melted . | . . . . Intel | -11 -10 -9 -9 ------- Run | Yrd Mat Mat Min Robot Analysis Total . | . . . . Derelict Logs Recovered . | . . . . Drone Launches . | . . . . Drone Recoveries . | . . . . Exploration | -11 -10 -9 -9 ------------- Run | Yrd Mat Mat Min Turns Passed 2818 | 61 671 1355 731 Spaces Moved 1045 | 35 269 529 212 Core 6 | 6 . . . Treads 1039 | 29 269 529 212 Legs . | . . . . Wheels . | . . . . Hover . | . . . . Flight . | . . . . Fastest Speed 50 | 50 160 160 320 Average Speed 207 | 141 160 191 320 Slowest Speed 320 | 160 160 320 320 Overloaded Moves . | . . . . Propulsion Burnouts . | . . . . Robots Hopped . | . . . . Cave-ins Triggered . | . . . . Exploration Rate (%) 29 | 4 35 37 41 Regions Visited 3 Branch Regions 1 Pre-discovered Areas . | . . . . Known Exits Taken 1 | . 1 . . Unknown Exits Taken 2 | 1 . 1 . Scrap Searched 1 | . . . 1 Spaces Dug . | . . . . Terrain Destroyed 27 | . . . 27 Melee . | . . . . Projectile . | . . . . AOE 27 | . . . 27 Terrain Rammed . | . . . . Walls Destroyed . | . . . . Machines Disabled . | . . . . Actions | -11 -10 -9 -9 --------- Run | Yrd Mat Mat Min Total 1511 | 44 456 779 232 Wait 308 | . 138 169 1 Move 1042 | 34 268 528 212 Hop . | . . . . Pick Up 9 | 4 2 3 . Fast Attach 27 | 6 5 14 2 Attach 3 | . 2 1 . Detach . | . . . . Swap 1 | . . 1 . Drop 21 | . 7 12 2 Fire 97 | . 34 50 13 Melee . | . . . . Ram . | . . . . Kick . | . . . . Crush 3 | . . 1 2 Escape Stasis . | . . . . Rewire . | . . . . Trap . | . . . . Miscellaneous . | . . . . Route ------- -11/Scrapyard -10/Materials -9/Materials -9/Mines History --------- Turn | Location | Event 6 | -11/Scrapyard | Discovered new exit (range 15) 62 | -11/Scrapyard | Entered Materials 303 | -10/Materials | Build established: Mutant 714 | -10/Materials | Discovered new exit (range 9) 731 | -10/Materials | Identified exit to Materials 733 | -10/Materials | Entered another Materials area 733 | -9/Materials | Evolved 2 slots: Weapon x2 1291 | -9/Materials | Build established: Scavenger-Tank 1549 | -9/Materials | Discovered new exit (range 15) 1612 | -9/Materials | Repaired Autogun 1662 | -9/Materials | Repaired Lgt. Treads 2088 | -9/Materials | Entered Mines 2324 | -9/Mines | Assembled infested the area 2329 | -9/Mines | Assisted by a Guerilla fighting off Assembled 2560 | -9/Mines | Received a Rocket Launcher from a helpful Derelict 2819 | -9/Mines | Self-destructed Last Messages --------------- Lgt. Armor Plating destroyed. as-12018 destroyed. Acquired 10 matter. as-23742 destroyed. Destroyed Asb. Hover Unit. as-27415 destroyed. Dropped Imp. Ion Engine. The unstable cave ceiling collapses. Acquired 20 matter. Acquired Lgt. Ion Engine. Acquired 18 matter. Destroyed Asb. F-torch. The unstable cave ceiling collapses. Acquired 5 matter. The unstable cave ceiling collapses. System corrupted: Substantial component data lost. Destroyed Asb. F-torch. as-61800 destroyed. as-37643 destroyed. Map ----- +----------------------------------------------------+ | ?????# ##??# #??## #??????????????????????? | | ?????# ####% ##?# ##?????????????????????? | | ?????# ## ! #?# ## ##????????????????????? | | ?????# #?## ### ##???????????#???????? | | ?????# ##??## #?# #?????????? ###?????? | | ?????## #????# #?# [ #????????? !??????? | | ####### #???## #?## ##???????? #??????? | | # #??## #?## #??????? #??????? | | # #### #?# #??????#= #???????? | | # #### ## ## ### ##?????#!%=#????????? | | # #??# #### ## ##?????# *#?????????? | | # #??# #??## ####?????# #??????????? | | #??## #???# ##????### #???????????? | | ###???# ???## ###### ###?????????? | | ?????? ???##### |* = # # #?????????? | | ????? #??????## = ! ! ###????????? | | ????? #??????## = #????????? | | ????? #?????## ##????????? | | ???? ?????# ###?????????? | | ????? ????# ## ##???????????? | | ?????? ????# ####????????????? | | ??????# ????## #??????????????? | | ####??? ??????## # #??????????????? | | #??? ?????????#### #####??????????????? | | ! #??????????????????## #??????????????????? | | !! #???????????????????# @ ###??????????????????? | | !! #????????????????# #????????????????????? | | !! #???????????????# ##????????????????????? | | #???????????????# ##?????????????????????? | | ####???????????????## ##??????????????????????? | | ????????????????????#####????????????????????????? | | ?????????????????????????????????????????????????? | | | | | | | | | | | | | | | | | | | | | | | | | | | | | | | | | | | | | +----------------------------------------------------+ Best States ------------- Heat Dissipation 28 Energy Generation 12 Energy Capacity 265 Matter Stores 300 Matter Capacity 300 Sight Range 16 Robot Scan Range 14 Terrain Scan Density 10 Armor Coverage 150 Evasion (%) 40 Recoil Reduction 2 Item Schematics ----------------- Lgt. Ion Engine | -9/Materials | Scanalyzed Robot Schematics ------------------ None Fabricated ------------ Nothing Alien Tech Used ----------------- None Achievements -------------- GoHome() Challenges ------------ None Game ------ Seed ModifiedSubatomicReactor Manual? 0 Play Time 00:37:06 Cumulative 1.6 hours Start 2024.12.04 @ 21:30:38 End 2024.12.04 @ 22:07:49 Sessions 1 Manual Loads 0 Difficulty Rogue Special Mode None Game No. 4 Rogue 4 Adventurer 0 Explorer 0 Win Type - Total 0 Types 0/0/0/0/0/0/0/0/0 Lore% 0 Gallery% 2 Achievement% 4 Wizard Run 0 Options --------- Layout 1 ASCII 0 Keyboard 0 Movement Mouse Keybinds 0 Fullscreen 2 Font 24/Smallcaps Map View 50x35 Zoom Use 82% Tactical HUD 0 Map Filters NONE Filters NONE Steam 1 RUN: 47379a76-8926-413f-82e4-f3e7f9a83632